bitfinex/quotes_BTCUSD_20241028
["timestamp","ask_amount","ask_price","bid_price","bid_amount"]
[1730108407887,1.10685392,68310.0,68309.0,0.20216733]
[1730108408785,1.10685392,68310.0,68309.0,0.31590617]
[1730108409861,1.10685392,68310.0,68309.0,0.31390617]
[1730108410734,1.10685392,68310.0,68309.0,0.31388575]
[1730108412342,1.10685392,68310.0,68309.0,0.31588575]
[1730108413549,1.10685392,68310.0,68309.0,0.37732397]
[1730108413767,1.10685392,68310.0,68309.0,0.33343976]
[1730108415595,1.10685392,68310.0,68309.0,0.37731265]
[1730108416043,1.10685392,68310.0,68309.0,0.33343976]
[1730108416519,1.01385392,68310.0,68309.0,0.48394357]
[1730108416741,1.01385392,68310.0,68309.0,0.64588355]
[1730108416954,1.01385392,68310.0,68309.0,0.75559409]
[1730108417387,1.01385392,68310.0,68309.0,0.75554335]
[1730108417613,1.01385392,68310.0,68309.0,0.64586628]
[1730108418078,1.01385392,68310.0,68309.0,0.7136848]
[1730108418304,1.01385392,68310.0,68309.0,0.64586212]
[1730108419660,1.01385392,68310.0,68309.0,0.73356796]
[1730108419889,1.01285392,68310.0,68309.0,0.72256796]
[1730108420315,1.01385392,68310.0,68309.0,0.73256796]
[1730108421236,1.01485392,68310.0,68309.0,0.74156796]
[1730108421450,1.01385392,68310.0,68309.0,0.73256796]
[1730108421698,1.01385392,68310.0,68309.0,0.71924369]
[1730108421906,1.01485392,68310.0,68309.0,0.71404639]
[1730108422116,1.01385392,68310.0,68309.0,0.73247913]
[1730108422567,1.01385392,68310.0,68309.0,0.65478547]
[1730108423267,1.01385392,68310.0,68309.0,0.6267311]
[1730108423522,1.18845392,68310.0,68309.0,0.38853686]
[1730108423737,1.18845392,68310.0,68309.0,0.22468635]
[1730108424384,1.18845392,68310.0,68309.0,0.07529335]
[1730108424600,1.18845392,68310.0,68309.0,0.05274247]
[1730108425723,1.18745392,68310.0,68309.0,0.03274247]
[1730108425946,1.18745392,68310.0,68309.0,0.03374247]
[1730108426173,1.33384492,68310.0,68309.0,0.02054281]
[1730108426436,1.33384492,68310.0,68309.0,0.00957351]
[1730108426659,1.33384492,68310.0,68309.0,0.01157351]
[1730108426884,1.33384492,68310.0,68309.0,0.00444937]
[1730108428434,1.33784492,68310.0,68309.0,0.00444937]
[1730108428895,1.33784492,68310.0,68309.0,0.00344937]
[1730108429328,1.34084492,68310.0,68309.0,0.00344937]
[1730108430886,1.36378199,68310.0,68309.0,0.00344937]
[1730108431327,1.34084492,68310.0,68309.0,0.00344937]
[1730108437757,1.34084492,68310.0,68309.0,0.00144937]
[1730108438221,1.28084492,68310.0,68309.0,0.00144937]
[1730108441309,1.28248892,68310.0,68309.0,0.00144937]
[1730108441948,1.28248892,68310.0,68309.0,0.00344937]
[1730108444524,1.30542633,68310.0,68309.0,0.00344937]
[1730108446796,1.28248892,68310.0,68309.0,0.00344937]
[1730108452591,1.28248892,68310.0,68309.0,0.00857368]
[1730108452820,1.28248892,68310.0,68309.0,0.5388791]
[1730108453050,1.28248892,68310.0,68309.0,0.5397011]
[1730108455504,1.28248892,68310.0,68309.0,0.53457679]
[1730108455719,1.28248892,68310.0,68309.0,0.53970669]
[1730108459070,1.30542596,68310.0,68309.0,0.53970669]
[1730108460186,1.28248892,68310.0,68309.0,0.53970669]
[1730108460415,1.28248892,68310.0,68309.0,0.69708368]
[1730108460416,0.96149792,68310.0,68309.0,0.69708368]
[1730108460644,0.96149792,68310.0,68309.0,0.71028755]
[1730108461345,0.95449792,68310.0,68309.0,0.71028755]
[1730108461576,0.9574161,68310.0,68309.0,0.7102873]
[1730108462024,0.9574161,68310.0,68309.0,0.5588943]
[1730108462248,0.9574161,68310.0,68309.0,0.5568943]
[1730108463164,0.9574161,68310.0,68309.0,0.5578943]
[1730108464052,0.9574161,68310.0,68309.0,0.55788815]
[1730108464278,0.9574161,68310.0,68309.0,0.55988815]
[1730108464963,1.1038071,68310.0,68309.0,0.55988815]
[1730108465633,0.9574161,68310.0,68309.0,0.55988815]
[1730108466153,0.9574161,68310.0,68309.0,0.54890373]
[1730108466375,1.1038071,68310.0,68309.0,0.55988444]
[1730108468139,1.1038071,68310.0,68309.0,0.55168285]
[1730108468362,0.9574161,68310.0,68309.0,0.55168285]
[1730108468597,0.9574161,68310.0,68309.0,0.5598844]
[1730108468598,1.1038071,68310.0,68309.0,0.5598844]
[1730108469042,1.1038071,68310.0,68309.0,0.55168285]
[1730108469469,1.1038071,68310.0,68309.0,0.55988464]
[1730108470799,1.1038071,68310.0,68309.0,0.55888464]
[1730108471265,1.1028071,68310.0,68309.0,0.55888464]
[1730108471482,1.1028071,68310.0,68309.0,0.53970214]
[1730108471697,1.1058071,68310.0,68309.0,0.55068472]
[1730108472122,1.1058071,68310.0,68309.0,0.55168472]
[1730108472582,1.1028071,68310.0,68309.0,0.55068472]
[1730108472804,1.1078071,68310.0,68309.0,0.55068472]
[1730108473020,1.1118071,68310.0,68309.0,0.55068472]
[1730108473474,1.2902071,68310.0,68309.0,0.53970214]
[1730108473734,1.40203611,68310.0,68309.0,0.53312742]
[1730108473948,1.38832456,68310.0,68309.0,0.53257679]
[1730108474162,1.38832456,68310.0,68309.0,0.53457679]
[1730108475660,1.38832456,68310.0,68309.0,0.00427137]
[1730108476755,1.38832456,68310.0,68309.0,0.00227137]
[1730108476944,1.38832456,68310.0,68309.0,0.00427137]
[1730108479115,1.41126194,68310.0,68309.0,0.00427137]
[1730108479357,1.38832456,68310.0,68309.0,0.00427137]
[1730108480341,1.27458572,68310.0,68309.0,0.00427137]
[1730108481969,1.27458572,68310.0,68309.0,0.00940865]
[1730108484018,1.29752246,68310.0,68309.0,0.00940865]
[1730108485622,1.29752246,68310.0,68309.0,0.00940825]
[1730108486041,1.27458572,68310.0,68309.0,0.00940825]
[1730108487425,1.27458572,68310.0,68309.0,0.00427137]
[1730108487661,1.26958572,68310.0,68309.0,0.00427137]
[1730108488127,1.27258572,68310.0,68309.0,0.00527137]
[1730108488357,1.27558572,68310.0,68309.0,0.01040798]
[1730108488590,1.27558572,68310.0,68309.0,0.00527137]
[1730108489104,1.2985225,68310.0,68309.0,0.00527137]
[1730108489340,1.2955225,68310.0,68309.0,0.00527137]
[1730108489578,1.3005225,68310.0,68309.0,0.00527137]
[1730108490276,1.27758572,68310.0,68309.0,0.00527137]
[1730108498298,1.27758572,68310.0,68309.0,0.01040989]
[1730108498963,1.30052254,68310.0,68309.0,0.01040989]
[1730108499178,1.27758572,68310.0,68309.0,0.01040989]
[1730108499429,1.27758572,68310.0,68309.0,0.00527137]
[1730108502377,1.27258572,68310.0,68309.0,0.00527137]
[1730108502620,1.27858572,68310.0,68309.0,0.00627137]
[1730108503126,1.27158572,68310.0,68309.0,0.00527137]
[1730108503576,1.30152265,68310.0,68309.0,0.00527137]
[1730108506094,1.27858572,68310.0,68309.0,0.00527137]
[1730108515050,1.30152265,68310.0,68309.0,0.00527137]
[1730108515911,1.27858572,68310.0,68309.0,0.00527137]
[1730108518670,1.27858572,68310.0,68309.0,0.01041154]
[1730108520194,1.27858572,68310.0,68309.0,0.00527137]
[1730108520432,1.27858572,68310.0,68309.0,0.01041167]
[1730108520655,1.27858572,68310.0,68309.0,0.00527137]
[1730108520880,1.27858572,68310.0,68309.0,0.01041167]
[1730108521545,1.27858572,68310.0,68309.0,0.00527137]
[1730108521767,1.27858572,68310.0,68309.0,0.0104117]
[1730108523781,1.17968572,68310.0,68309.0,0.0104117]
[1730108523999,1.10018572,68310.0,68309.0,0.0104117]
[1730108525284,1.09318572,68310.0,68309.0,0.0104117]
[1730108525741,1.10018572,68310.0,68309.0,0.0104117]
[1730108526303,1.09418572,68310.0,68309.0,0.0094117]
[1730108526618,1.09918572,68310.0,68309.0,0.0104117]
[1730108526830,1.09918572,68310.0,68309.0,0.01041185]
[1730108527038,1.09418572,68310.0,68309.0,0.00941185]
[1730108527247,1.08718572,68310.0,68309.0,0.00941185]
[1730108527449,1.08718572,68310.0,68309.0,0.01041185]
[1730108527450,1.09318572,68310.0,68309.0,0.01041185]
[1730108527673,1.10118572,68310.0,68309.0,0.01041185]
[1730108527887,1.10118572,68310.0,68309.0,0.0104118]
[1730108530409,1.10118572,68310.0,68309.0,0.00527137]
[1730108530618,0.95479472,68310.0,68309.0,0.01041161]
[1730108530831,1.12412234,68310.0,68309.0,0.01041161]
[1730108532305,0.97773134,68310.0,68309.0,0.01041161]
[1730108532709,0.97773134,68310.0,68309.0,0.1650301]
[1730108532957,0.97773134,68310.0,68309.0,0.37996894]
[1730108532958,0.95479472,68310.0,68309.0,0.37996894]
[1730108533185,0.94166862,68310.0,68309.0,0.72100745]
[1730108533420,0.95454862,68310.0,68309.0,0.63313688]
[1730108533630,0.94854862,68310.0,68309.0,0.65170559]
[1730108534142,0.94054862,68310.0,68309.0,0.8042094]
[1730108534372,0.94054862,68310.0,68309.0,0.8002094]
[1730108534584,0.94054862,68310.0,68309.0,0.80019943]
[1730108534800,0.94054862,68310.0,68309.0,0.80419943]
[1730108535015,0.94154862,68310.0,68309.0,0.80319943]
[1730108535240,0.94154862,68310.0,68309.0,0.91294349]
[1730108535450,0.94254862,68310.0,68309.0,0.91994349]
[1730108535886,0.94054862,68310.0,68309.0,0.91194349]
[1730108536111,0.94154862,68310.0,68309.0,0.91994349]
[1730108536333,0.94154862,68310.0,68309.0,0.89797038]
[1730108536985,0.94154862,68310.0,68309.0,0.89597038]
[1730108537201,0.94254862,68310.0,68309.0,0.89697038]
[1730108537425,0.94254862,68310.0,68309.0,0.89897038]
[1730108537848,0.94254862,68310.0,68309.0,0.81119943]
[1730108538072,0.94254862,68310.0,68309.0,0.81115464]
[1730108538289,0.94254862,68310.0,68309.0,0.89888396]
[1730108538520,0.94254862,68310.0,68309.0,0.88134185]
[1730108539008,0.94254862,68310.0,68309.0,0.89888003]
[1730108539239,0.94254862,68310.0,68309.0,0.79361253]
[1730108539457,0.94254862,68310.0,68309.0,0.81115071]
[1730108540104,0.94254862,68310.0,68309.0,0.89888003]
[1730108540321,0.94254862,68310.0,68309.0,0.79361253]
[1730108540549,0.94254862,68310.0,68309.0,0.859382]
[1730108541253,0.94254862,68310.0,68309.0,0.69711406]
[1730108542300,0.94254862,68310.0,68309.0,0.63134459]
[1730108543925,0.94254862,68310.0,68309.0,0.69710196]
[1730108544181,0.94254862,68310.0,68309.0,0.8808002]
[1730108544402,0.94254862,68310.0,68309.0,0.8983303]
[1730108544612,0.94254862,68310.0,68309.0,0.8943303]
[1730108544839,0.94254862,68310.0,68309.0,0.8768002]
[1730108545057,0.94254862,68310.0,68309.0,0.8943303]
[1730108545290,0.94254862,68310.0,68309.0,0.7931237]
[1730108545582,0.94254862,68310.0,68309.0,0.8086538]
[1730108545821,0.94254862,68310.0,68309.0,0.8106538]
[1730108546046,0.94254862,68310.0,68309.0,0.7931237]
[1730108546265,0.94254862,68310.0,68309.0,0.85883245]
[1730108547145,0.94254862,68310.0,68309.0,0.69705334]
[1730108547581,0.94254862,68310.0,68309.0,0.63134459]
[1730108548010,0.94254862,68310.0,68309.0,0.64887469]
[1730108548239,0.94254862,68310.0,68309.0,0.64229507]
[1730108548457,0.94254862,68310.0,68309.0,0.65982517]
[1730108548667,0.94254862,68310.0,68309.0,0.64229507]
[1730108548882,0.94254862,68310.0,68309.0,0.65982517]
[1730108549101,0.94254862,68310.0,68309.0,0.64229507]
[1730108549338,0.94254862,68310.0,68309.0,0.79065586]
[1730108549582,0.94254862,68310.0,68309.0,0.79302777]
[1730108549801,0.94254862,68310.0,68309.0,0.82149911]
[1730108551119,0.94254862,68310.0,68309.0,0.65980075]
[1730108554102,0.94254862,68310.0,68309.0,0.88717926]
[1730108554635,0.94254862,68310.0,68309.0,0.82148073]
[1730108555463,0.94474516,68310.0,68309.0,0.82148073]
[1730108556786,0.94474516,68310.0,68309.0,0.79300939]
[1730108557223,0.94474516,68310.0,68309.0,0.82149861]
[1730108557567,0.94254862,68310.0,68309.0,0.82149861]
[1730108558745,0.94254862,68310.0,68309.0,0.74059861]
[1730108558977,0.94474516,68310.0,68309.0,0.52865977]
[1730108559212,0.94474516,68310.0,68309.0,0.36697979]
[1730108561880,0.94254862,68310.0,68309.0,0.36697979]
[1730108563045,0.94254862,68310.0,68309.0,0.36897979]
[1730108563531,0.94254862,68310.0,68309.0,0.43466532]
[1730108564420,0.94254862,68310.0,68309.0,0.43473955]
[1730108564649,0.94254862,68310.0,68309.0,0.59643669]
[1730108567009,0.94254862,68310.0,68309.0,0.53075116]
[1730108568168,0.94254862,68310.0,68309.0,0.64024871]
[1730108568383,0.94254862,68310.0,68309.0,0.53075116]
[1730108568883,0.94254862,68310.0,68309.0,0.64024871]
[1730108569095,0.94254862,68310.0,68309.0,0.53075116]
[1730108570167,0.94254862,68310.0,68309.0,0.64024871]
[1730108571959,0.92966862,68310.0,68309.0,0.64024871]
[1730108572172,0.92966862,68310.0,68309.0,1.06105658]
[1730108572393,0.94256296,68310.0,68309.0,1.06105658]
[1730108572905,0.94256296,68310.0,68309.0,1.17065602]
[1730108573333,0.94256296,68310.0,68309.0,1.06122605]
[1730108574679,0.94256296,68310.0,68309.0,1.06127598]
[1730108575535,0.94256296,68310.0,68309.0,1.03271253]
[1730108575722,0.94256296,68310.0,68309.0,1.06129015]
[1730108577223,0.94156296,68310.0,68309.0,1.18483889]
[1730108578280,0.94156296,68310.0,68309.0,1.05329015]
[1730108578704,0.94256296,68310.0,68309.0,1.06729015]
[1730108579158,0.94156296,68310.0,68309.0,0.52298473]
[1730108579377,0.94156296,68310.0,68309.0,0.52298486]
[1730108579618,0.94256296,68310.0,68309.0,0.58278105]
[1730108579850,0.94256296,68310.0,68309.0,0.58278136]
[1730108580064,0.92966862,68310.0,68309.0,0.6965202]
[1730108580384,0.94256105,68310.0,68309.0,0.6965202]
[1730108580817,0.94685852,68310.0,68309.0,0.6965202]
[1730108581033,0.90105105,68310.0,68309.0,0.65072401]
[1730108581942,0.90105105,68310.0,68309.0,0.60877363]
[1730108582847,0.90105105,68310.0,68309.0,0.62214527]
[1730108583056,0.90105105,68310.0,68309.0,0.60877363]
[1730108584436,0.90105105,68310.0,68309.0,0.62214527]
[1730108585294,0.90005105,68310.0,68309.0,0.60814527]
[1730108585546,0.90005105,68310.0,68309.0,0.62114527]
[1730108585755,0.90105105,68310.0,68309.0,0.62177363]
[1730108585971,0.90005105,68310.0,68309.0,0.60777363]
[1730108586885,0.90105105,68310.0,68309.0,0.62177363]
[1730108589926,0.90105105,68310.0,68309.0,0.63514396]
[1730108591004,0.90105105,68310.0,68309.0,0.68130559]
[1730108591431,0.90105105,68310.0,68309.0,0.66793526]
[1730108591651,0.90105105,68310.0,68309.0,0.68130476]
[1730108592135,0.90005105,68310.0,68309.0,0.66730476]
[1730108592366,0.90005105,68310.0,68309.0,0.86199952]
[1730108592583,0.89905105,68310.0,68309.0,0.86099952]
[1730108593013,0.89905105,68310.0,68309.0,0.85999952]
[1730108593239,0.89905105,68310.0,68309.0,0.84799952]
[1730108594367,0.89905105,68310.0,68309.0,0.86099952]
[1730108594809,0.89905105,68310.0,68309.0,0.84799952]
[1730108595029,0.90005105,68310.0,68309.0,0.84563002]
[1730108595241,0.90005105,68310.0,68309.0,0.87099917]
[1730108595453,0.89905105,68310.0,68309.0,0.85999917]
[1730108595667,0.90005105,68310.0,68309.0,0.87099917]
[1730108599517,0.90005105,68310.0,68309.0,0.67630441]
[1730108602546,0.90005105,68310.0,68309.0,0.56256557]
[1730108605188,0.90005105,68310.0,68309.0,0.75726033]
[1730108605648,0.82021372,68310.0,68309.0,0.96216065]
[1730108605876,0.81220382,68310.0,68309.0,1.00794559]
[1730108606148,0.70829882,68310.0,68309.0,0.89420675]
[1730108606584,0.61416303,68310.0,68309.0,0.96216065]
[1730108606802,0.61416303,68310.0,68309.0,0.84842181]
[1730108607023,0.4339574,68310.0,68309.0,0.93916065]
[1730108607284,0.40987893,68310.0,68309.0,1.03186065]
[1730108607740,0.24298594,68310.0,68309.0,1.03186065]
[1730108607980,0.24298594,68310.0,68309.0,1.01886065]
[1730108608205,0.24298594,68310.0,68309.0,1.03186065]
[1730108608431,0.24298594,68310.0,68309.0,1.17661286]
[1730108608686,0.24298594,68310.0,68309.0,1.16361286]
[1730108609120,0.24298594,68310.0,68309.0,1.06287402]
[1730108609791,0.24298594,68310.0,68309.0,1.06270222]
[1730108610005,0.24298594,68310.0,68309.0,1.04970222]
[1730108610418,0.24298594,68310.0,68309.0,1.06270222]
[1730108611107,0.24298594,68310.0,68309.0,0.93096935]
[1730108612037,0.24298594,68310.0,68309.0,0.93093376]
[1730108612247,0.24298594,68310.0,68309.0,1.0446726]
[1730108612486,0.24298594,68310.0,68309.0,0.76887617]
[1730108613360,0.24298594,68310.0,68309.0,0.57543733]
[1730108613598,0.24298594,68310.0,68309.0,0.75633396]
[1730108614279,0.24298594,68310.0,68309.0,0.75631617]
[1730108614512,0.24298594,68310.0,68309.0,0.73331617]
[1730108614966,0.24298594,68310.0,68309.0,0.61957733]
[1730108615183,0.32208594,68310.0,68309.0,0.61957733]
[1730108615401,0.43166614,68310.0,68309.0,0.50457733]
[1730108615628,0.41538594,68310.0,68309.0,0.35551954]
[1730108615850,0.43165745,68310.0,68309.0,0.35551871]
[1730108616073,0.43165745,68310.0,68309.0,0.34251871]
[1730108616337,0.43165745,68310.0,68309.0,0.35551871]
[1730108616574,0.43165745,68310.0,68309.0,0.34251871]
[1730108617209,0.43165745,68310.0,68309.0,0.35551871]
[1730108619446,0.43165745,68310.0,68309.0,0.60535128]
[1730108619901,0.43165745,68310.0,68309.0,0.59200075]
[1730108620158,0.43165745,68310.0,68309.0,0.95052879]
[1730108620159,0.21460927,68310.0,68309.0,0.95052879]
[1730108620601,0.001644,68316.0,68315.0,0.41730705]
[1730108620797,0.001644,68316.0,68315.0,0.74319379]
[1730108621337,0.001644,68316.0,68315.0,0.84319379]
[1730108621547,0.001644,68316.0,68315.0,0.82985052]
[1730108621766,0.001644,68316.0,68315.0,0.84319285]
[1730108622391,0.001644,68316.0,68315.0,0.85319285]
[1730108622627,0.001644,68316.0,68315.0,0.84319285]
[1730108622907,0.001644,68316.0,68315.0,0.85619285]
[1730108623095,0.001644,68316.0,68315.0,0.85419285]
[1730108623346,0.001644,68316.0,68315.0,0.84319285]
[1730108623580,0.001644,68316.0,68315.0,0.85619285]
[1730108623790,0.001644,68316.0,68315.0,0.84319285]
[1730108624000,0.001644,68316.0,68315.0,0.85619285]
[1730108624434,0.001644,68316.0,68315.0,0.84319285]
[1730108624656,0.001644,68316.0,68315.0,0.82985052]
[1730108624887,0.001644,68316.0,68315.0,0.7294511]
[1730108625132,0.001644,68316.0,68315.0,0.85618994]
[1730108625337,0.001644,68316.0,68315.0,0.72911168]
[1730108625561,0.001644,68316.0,68315.0,0.74245055]
[1730108626467,0.001644,68316.0,68315.0,0.75545055]
[1730108627353,0.001644,68316.0,68315.0,0.86918939]
[1730108628884,0.001644,68316.0,68315.0,0.85585052]
[1730108629159,0.001644,68316.0,68315.0,0.86918771]
[1730108631592,0.001644,68316.0,68315.0,1.08806516]
[1730108631833,0.001644,68316.0,68315.0,0.86918771]
[1730108632286,0.001644,68316.0,68315.0,0.86904202]
[1730108632761,0.001644,68316.0,68315.0,0.86904129]
[1730108634861,0.001644,68316.0,68315.0,1.30818129]
[1730108635511,0.001644,68322.0,68321.0,0.18981637]
[1730108635738,0.001644,68322.0,68321.0,0.62928945]
[1730108636404,0.001644,68322.0,68321.0,0.72928945]
[1730108636619,0.001644,68322.0,68321.0,1.16838945]
[1730108636842,0.001644,68322.0,68321.0,1.19338945]
[1730108637489,0.001644,68322.0,68321.0,1.18038945]
[1730108638255,0.001644,68322.0,68321.0,1.06665061]
[1730108638460,0.001644,68322.0,68321.0,1.05465061]
[1730108638674,0.001644,68322.0,68321.0,1.06765061]
[1730108638891,0.001644,68322.0,68321.0,1.08065061]
[1730108639319,0.001644,68322.0,68321.0,1.06765061]
[1730108639534,0.001644,68322.0,68321.0,1.08065061]
[1730108641778,0.0821,68336.0,68330.0,0.16679737]
[1730108642035,0.0821,68336.0,68330.0,1.15905929]
[1730108642288,0.02028788,68331.0,68330.0,1.15905929]
[1730108642520,0.001644,68331.0,68330.0,1.15905929]
[1730108642735,0.001644,68331.0,68330.0,1.15905071]
[1730108643173,0.001644,68331.0,68330.0,1.20053082]
[1730108643387,0.001644,68331.0,68330.0,1.21353082]
[1730108643579,0.001644,68331.0,68330.0,1.20053082]
[1730108645926,0.001644,68331.0,68330.0,1.21353082]
[1730108646150,0.001644,68331.0,68330.0,1.20053082]
[1730108646600,0.001644,68331.0,68330.0,1.19599951]
[1730108646830,0.001644,68331.0,68330.0,1.21351474]
[1730108647043,0.001644,68331.0,68330.0,1.25387608]
[1730108648322,0.001644,68331.0,68330.0,1.21208417]
[1730108648956,0.001644,68331.0,68330.0,1.21721096]
[1730108649415,0.001644,68331.0,68330.0,1.22541486]
[1730108649637,0.001644,68331.0,68330.0,1.25391533]
[1730108649874,0.001644,68331.0,68330.0,1.21208417]
[1730108650526,0.079146,68342.0,68333.0,0.16679137]
[1730108650744,0.079146,68342.0,68333.0,1.00579946]
[1730108651674,0.079146,68342.0,68333.0,1.03430394]
[1730108652132,0.079146,68342.0,68333.0,1.04730394]
[1730108652381,0.079146,68342.0,68333.0,1.06030368]
[1730108652606,0.079146,68342.0,68333.0,1.04513758]
[1730108655333,0.079146,68342.0,68333.0,0.95755727]
[1730108656919,0.079146,68342.0,68333.0,1.96755727]
[1730108658019,0.079146,68342.0,68333.0,1.96755412]
[1730108659156,0.079146,68342.0,68333.0,2.08129296]
[1730108660327,0.079146,68342.0,68333.0,2.1950318]
[1730108660536,0.079146,68342.0,68333.0,2.16887327]
[1730108661615,0.079146,68342.0,68333.0,2.16887645]
[1730108662064,0.079146,68342.0,68333.0,2.28261529]
[1730108662493,0.079146,68342.0,68333.0,2.19503498]
[1730108663635,0.079146,68342.0,68333.0,2.30451037]
[1730108664280,0.079146,68342.0,68333.0,2.30431841]
[1730108664502,0.079146,68342.0,68333.0,2.19482091]
[1730108665152,0.079146,68342.0,68333.0,2.18148276]
[1730108665363,0.079146,68342.0,68333.0,2.19482535]
[1730108665567,0.079146,68342.0,68341.0,0.27851321]
[1730108665776,0.079146,68342.0,68341.0,0.51010539]
[1730108666219,0.079146,68342.0,68341.0,0.67189815]
[1730108666848,0.079146,68342.0,68341.0,0.67789815]
[1730108667913,0.079146,68342.0,68341.0,0.68589815]
[1730108668330,0.079146,68342.0,68341.0,0.67789815]
[1730108668542,0.079146,68342.0,68341.0,0.67589815]
[1730108668766,0.079146,68342.0,68341.0,0.67889815]
[1730108668972,0.079146,68342.0,68341.0,0.67892179]
[1730108669190,0.079146,68342.0,68341.0,0.67792179]
[1730108669404,0.079146,68342.0,68341.0,0.60418231]
[1730108669619,0.079146,68342.0,68341.0,0.61218231]
[1730108669821,0.079146,68342.0,68341.0,0.61818231]
[1730108670245,0.079146,68342.0,68341.0,0.72976831]
[1730108670459,0.001646,68342.0,68341.0,0.62018231]
[1730108673579,0.001646,68342.0,68341.0,0.62013523]
[1730108674460,0.001646,68342.0,68341.0,0.73387407]
[1730108675188,0.001646,68342.0,68341.0,0.62013523]
[1730108675402,0.001646,68342.0,68341.0,0.61213523]
[1730108675625,0.001646,68342.0,68341.0,0.60613523]
[1730108675831,0.001646,68342.0,68341.0,0.73287407]
[1730108676285,0.001646,68342.0,68341.0,0.61913523]
[1730108676573,0.001646,68342.0,68341.0,0.63213326]
[1730108677441,1e-06,68342.0,68341.0,1.09943544]
[1730108677659,1e-06,68342.0,68341.0,1.17111326]
[1730108677865,1e-06,68342.0,68341.0,1.19411326]
[1730108679750,1e-06,68342.0,68341.0,1.3078521]
[1730108680207,1e-06,68342.0,68341.0,1.29449739]
[1730108680424,1e-06,68342.0,68341.0,1.30383843]
[1730108680626,0.001646,68349.0,68348.0,0.39223705]
[1730108680835,0.001646,68349.0,68348.0,0.80549064]
[1730108681052,0.02037936,68349.0,68348.0,0.80549064]
[1730108681558,0.02037936,68349.0,68348.0,0.71784343]
[1730108681776,0.02037936,68349.0,68348.0,0.72684343]
[1730108682217,0.02037936,68349.0,68348.0,0.73384343]
[1730108683149,0.02037936,68349.0,68348.0,0.73384329]
[1730108683370,0.02037936,68349.0,68348.0,0.72684329]
[1730108683601,0.02037936,68349.0,68348.0,0.71784329]
[1730108683818,0.02037936,68349.0,68348.0,0.62010445]
[1730108684258,0.02037936,68349.0,68348.0,0.61110445]
[1730108684479,0.02037936,68349.0,68348.0,0.6111208]
[1730108684694,0.02037936,68349.0,68348.0,0.6191208]
[1730108685129,0.02037936,68349.0,68348.0,0.6121208]
[1730108685355,0.02037936,68349.0,68348.0,0.6181208]
[1730108685779,0.02037936,68349.0,68348.0,0.6201208]
[1730108685991,0.02037936,68349.0,68348.0,0.6181208]
[1730108686220,0.02037936,68349.0,68348.0,0.6201208]
[1730108686419,0.02037936,68349.0,68348.0,0.73385964]
[1730108686689,0.02037936,68349.0,68348.0,0.6201208]
[1730108686896,0.02037936,68349.0,68348.0,0.73385964]
[1730108687288,0.02037936,68349.0,68348.0,0.6201208]
[1730108687543,0.02037936,68349.0,68348.0,0.86533615]
[1730108687727,0.02037936,68349.0,68348.0,0.7205186]
[1730108687993,0.02037936,68349.0,68348.0,0.73385004]
[1730108688838,0.02037936,68349.0,68348.0,1.74385004]
[1730108689295,0.02037936,68349.0,68348.0,1.6301112]
[1730108690158,0.02037936,68349.0,68348.0,1.74385004]
[1730108690369,0.02037936,68349.0,68348.0,1.6301112]
[1730108690603,0.02037936,68349.0,68348.0,1.74385004]
[1730108691023,0.02037936,68349.0,68348.0,1.6301112]
[1730108691708,0.02037936,68349.0,68348.0,1.63011268]
[1730108694936,0.02037936,68349.0,68348.0,1.62811268]
[1730108695639,0.02037936,68349.0,68348.0,0.61811268]
[1730108695850,0.02037936,68349.0,68348.0,0.62011268]
[1730108696307,0.02037936,68349.0,68348.0,0.61811268]
[1730108696730,0.02037936,68349.0,68348.0,0.60411268]
[1730108696969,0.02037936,68349.0,68348.0,0.60611268]
[1730108697189,0.02037936,68349.0,68348.0,0.61511268]
[1730108698050,0.02037936,68349.0,68348.0,0.62211268]
[1730108698722,0.02037936,68349.0,68348.0,0.62011268]
[1730108699174,0.02037936,68349.0,68348.0,0.62012374]
[1730108699615,0.02037936,68349.0,68348.0,0.62212374]
[1730108700300,0.02037936,68349.0,68348.0,0.62012374]
[1730108701427,0.02037936,68349.0,68348.0,0.62212374]
[1730108701656,0.02037936,68349.0,68348.0,0.60877976]
[1730108701853,0.02037936,68349.0,68348.0,0.73586744]
[1730108703019,10.083946,68350.0,68349.0,0.16675637]
[1730108703247,10.083946,68350.0,68349.0,0.49238676]
[1730108703929,10.001646,68350.0,68349.0,0.49238676]
[1730108704384,10.001646,68350.0,68349.0,0.50038676]
[1730108704618,10.001646,68350.0,68349.0,0.49838676]
[1730108705066,10.001646,68350.0,68349.0,0.50038676]
[1730108705509,10.001646,68350.0,68349.0,0.5004037]
[1730108705734,10.001646,68350.0,68349.0,0.5064037]
[1730108707319,10.001646,68350.0,68349.0,1.0453237]
[1730108707753,10.001646,68350.0,68349.0,1.03197486]
[1730108707971,10.001646,68350.0,68349.0,1.06832652]
[1730108708194,10.001646,68350.0,68349.0,1.11402865]
[1730108708818,10.001646,68350.0,68349.0,1.10602865]
[1730108709033,10.001646,68350.0,68349.0,1.10002865]
[1730108709271,10.001646,68350.0,68349.0,1.11302865]
[1730108709589,10.001646,68350.0,68349.0,1.12602865]
[1730108709799,10.001646,68350.0,68349.0,1.06732652]
[1730108709800,9.9558697,68350.0,68349.0,1.06732652]
[1730108709926,9.9558697,68350.0,68349.0,1.08032652]
[1730108710142,9.9558697,68350.0,68349.0,1.0802801]
[1730108710439,9.97330575,68350.0,68349.0,1.0672801]
[1730108710661,9.97330575,68350.0,68349.0,1.11295626]
[1730108711073,9.97330575,68350.0,68349.0,1.09995626]
[1730108711286,9.97330575,68350.0,68349.0,1.0672801]
[1730108712049,9.97330575,68350.0,68349.0,1.09752026]
[1730108712914,9.88552275,68350.0,68349.0,1.13497177]
[1730108713241,9.88552275,68350.0,68349.0,1.14079789]
[1730108713454,9.74350935,68350.0,68349.0,1.11266716]
[1730108713671,9.62646535,68350.0,68349.0,1.12600409]
[1730108714528,9.09342329,68350.0,68349.0,1.12600409]
[1730108714744,9.06296527,68350.0,68349.0,1.22320409]
[1730108715427,9.02964073,68350.0,68349.0,1.20566651]
[1730108715572,9.02964073,68350.0,68349.0,1.1813686]
[1730108716087,8.98869686,68350.0,68349.0,1.1813686]
[1730108718744,8.88917743,68350.0,68349.0,1.1813686]
[1730108719571,8.88917743,68350.0,68349.0,1.19458688]
[1730108720014,8.88855125,68350.0,68349.0,1.19458688]
[1730108720449,8.88855125,68350.0,68349.0,1.19540888]
[1730108720678,8.89019525,68350.0,68349.0,1.19540888]
[1730108720889,8.89019525,68350.0,68349.0,1.18240888]
[1730108721170,8.89019525,68350.0,68349.0,1.15608004]
[1730108721375,8.89019525,68350.0,68349.0,1.18240703]
[1730108721597,8.89019525,68350.0,68349.0,1.19540703]
[1730108721819,8.89019525,68350.0,68349.0,1.21087635]
[1730108722237,8.89019525,68350.0,68349.0,1.22387635]
[1730108724204,8.89019525,68350.0,68349.0,1.06223865]
[1730108724419,8.89019525,68350.0,68349.0,1.22387518]
[1730108725275,8.89019525,68350.0,68349.0,1.45135286]
[1730108725974,8.89019525,68350.0,68349.0,1.52628951]